[Event "26th Triest Festival 2024"]
[Site "Triest"]
[Date "2024.09.03"]
[Round "6.10"]
[White "Lohia, Sohum"]
[Black "Sepehrkhoui, Ardeshir"]
[Result "1-0"]
[Annotator "TA"]
[ECO "C42"]
[WhiteElo "2402"]
[BlackElo "2209"]
[PlyCount "47"]
[EventDate "2024.09.02"]
[EventType "swiss"]
[EventCountry "ITA"]
[SourceTitle "playchess.com"]
[Source "ChessBase"]
[SourceQuality "1"]
[TimeControl "5400+30"]

{[%evp 11,47,9,13,0,65,74,93,87,117,110,125,139,156,143,167,116,241,233,233,193,193,185,192,202,312,326,310,321,325,345,306,192,406,390,29994,29995,29995,29996]} 1. e4 {[%emt 0:00:03]} e5 {[%emt 0:00:08]} 2. Nf3 {[%emt 0:00:05]} Nf6 {[%emt 0:00:05]} 3. Nxe5 {[%emt 0:00:06]} d6 {[%emt 0:00:04]} 4. Nf3 {[%emt 0:00:06][%cal Be5f3,Bf3d4,Bd4e2,Be2f4][%mdl 32]} Nxe4 {[%emt 0:00:02]} 5. Nc3 {[%emt 0:00:07]} Nxc3 {[%emt 0:00:04]} 6. dxc3 {[%emt 0:00:04]} Be7 {[%emt 0:00:39]} 7. Bf4 {[%emt 0:00:09]} g5 {[%emt 0:07:18]} (7... O-O $11) 8. Be3 $14 {[%emt 0:09:10]} (8. Qd4 {feels hotter.} Rg8 9. Bg3 Bf6 10. Bb5+) 8... g4 {[%emt 0:04:44]} 9. Nd4 {[%emt 0:02:20] White is better.} c5 {[%emt 0:00:38]} 10. Ne2 {[%emt 0:02:58]} Nd7 {[%emt 0:03:45]} 11. Nf4 {[%emt 0:05:23]} Nf6 {[%emt 0:02:20]} 12. Bc4 {[%emt 0:04:39] White is more active.} O-O {[%emt 0:04:17]} 13. h3 {[%emt 0:05:21]} (13. Qd3 $18) 13... Bf5 {[%emt 0:12:07]} (13... gxh3 $16 14. gxh3 (14. Nxh3 d5 $14) 14... Qb6) 14. Qe2 $18 {[%emt 0:07:07]} gxh3 {[%emt 0:16:52]} 15. Nxh3 {[%emt 0:02:57]} b5 {[%emt 0:16:31]} 16. Bd3 {[%emt 0:02:05]} Bg6 {[%emt 0:01:58]} 17. O-O-O {[%emt 0:02:55]} (17. Bxb5 Qc7 18. Nf4 Qb7) 17... Nd7 {[%emt 0:04:24]} (17... Qd7 $142 18. Bxb5 Qb7) 18. f4 {[%emt 0:03:21] [#] Hoping for f5.} c4 {[%emt 0:00:58]} 19. Bxg6 {[%emt 0:00:27]} fxg6 {[%emt 0:00:10]} 20. Bd4 {[%emt 0:03:40]} Rf7 {[%emt 0:01:12]} 21. Qe6 {[%emt 0:02:41][%cal Oh3g5] Ng5! would kill now.} Qc8 $2 {[%emt 0:04:10]} (21... Nf8 22. Qd5 Rc8 23. Qxb5 Rf5) 22. Ng5 {[%emt 0:04:12]} Bxg5 $2 {[%emt 0:00:14] [#]} (22... Ne5 $18 23. Qxc8+ (23. Bxe5 Qxe6 24. Nxe6 dxe5 $16) 23... Rxc8 24. Nxf7 (24. Bxa7 $2 {is the wrong capture.} Bxg5 25. Be3 Ng4 $19) 24... Nxf7) 23. Rxh7 $3 {[%emt 0:01:39][%csl Gh7][%cal Re6f7][%mdl 512]} Bxf4+ {[%emt 0:00:15]} 24. Kb1 {[%emt 0:00:06] White took control after the opening.   Weighted Error Value: White=0.11 (very precise) /Black=0.65.  Mistake:       	White=1     	Black=5      Inaccurate:     	White=1     	Black=1      OK:         	White=10    	Black=2      Best:        	White=1     	Black=1      Brilliant:      	White=1     	---} 1-0

[Event "26th Triest Festival 2024"]
[Site "Triest"]
[Date "2024.09.03"]
[Round "6.11"]
[White "Dobrovoljc, Vid"]
[Black "Gueci, Tea"]
[Result "1-0"]
[Annotator "TA"]
[ECO "B31"]
[WhiteElo "2387"]
[BlackElo "2199"]
[PlyCount "77"]
[EventDate "2024.09.02"]
[EventType "swiss"]
[EventCountry "ITA"]
[SourceTitle "playchess.com"]
[Source "ChessBase"]
[SourceQuality "1"]
[TimeControl "5400+30"]

{[%evp 13,77,21,32,40,30,31,37,41,45,18,45,45,74,71,78,12,15,24,72,70,56,62,82,76,77,70,98,49,30,39,64,67,63,61,58,67,148,105,1047,1039,1024,1012,29983,29984,29994,622,658,658,637,650,666,636,700,708,683,709,1001,952,1437,1529,1511,1486,1441,1428,1065,992]} 1. e4 {[%emt 0:05:21]} c5 {[%emt 0:00:03]} 2. Nf3 {[%emt 0:00:28]} Nc6 {[%emt 0:00:05]} 3. Bb5 {[%emt 0:00:33]} g6 {[%emt 0:00:04]} 4. O-O {[%emt 0:05:51]} Bg7 {[%emt 0:00:04]} 5. Nc3 {[%emt 0:05:23]} Nd4 {[%emt 0:09:37]} 6. Nxd4 {[%emt 0:10:44]} cxd4 {[%emt 0:00:16]} 7. Ne2 {[%emt 0:00:04]} a6 {[%emt 0:07:02]} 8. Ba4 {[%emt 0:06:46]} b5 {[%emt 0:07:06]} 9. Bb3 {[%emt 0:02:03]} Bb7 {[%emt 0:00:04]} 10. d3 {[%emt 0:01:08] White is slightly better.} e6 {[%emt 0:05:23]} 11. f4 {[%emt 0:06:26]} Ne7 {[%emt 0:04:54]} 12. Qe1 {[%emt 0:01:30]} O-O {[%emt 0:04:35]} 13. Qf2 {[%emt 0:02:15]} a5 {[%emt 0:19:46] [#] Threatens to win with ...a4.} 14. a3 {[%emt 0:08:44]} (14. Nxd4 $2 a4 15. Be3 axb3 16. axb3 b4 $19) (14. a4 $1 $16) 14... Qb6 {[%emt 0:07:09]} 15. c3 {[%emt 0:04:19]} Nc6 {[%emt 0:04:45]} (15... b4 $11 16. axb4 axb4 17. Rxa8 Rxa8 18. cxd4 f5) 16. Nxd4 $16 {[%emt 0:01:56]} Nxd4 {[%emt 0:07:36]} 17. Be3 $1 {[%emt 0:00:09]} a4 {[%emt 0:00:51]} 18. Ba2 {[%emt 0:02:06]} Rac8 {[%emt 0:00:57]} 19. Rae1 {[%emt 0:03:33][%cal Oe4e5]} (19. cxd4 d5 $11) (19. Bxd4 Bxd4 20. cxd4 (20. Qxd4 Qxd4+ 21. cxd4 Rc2 $11) 20... d5 $11) 19... Ba6 {[%emt 0:06:22][%cal Ob5b4] [#]} 20. f5 {[%emt 0:07:16]} exf5 $14 {[%emt 0:03:25]} 21. exf5 {[%emt 0:00:21]} gxf5 {[%emt 0:00:39][%cal Ob5b4]} 22. Bxd4 {[%emt 0:02:40]} (22. cxd4 $6 b4 23. Qxf5 b3 $11) 22... Bxd4 {[%emt 0:00:34]} 23. cxd4 {[%emt 0:00:20][%cal Of2h4]} b4 {[%emt 0:00:22]} 24. axb4 {[%emt 0:02:03] aiming for Re5.} (24. Qxf5 Qxd4+ 25. Rf2 Bxd3 26. Bxf7+ Kh8 $11) 24... Qxb4 {[%emt 0:03:09]} (24... Kh8 $1 $14) 25. Re5 $40 {[%emt 0:03:14][%mdl 128] White is out for blood.} (25. Qxf5 Qxd4+ 26. Kh1 Bxd3 $15) 25... Rc2 $2 {[%emt 0:03:28][%mdl 8192] Black cannot hold the game after this.} 26. Qxf5 $18 {[%emt 0:03:58] White threatens Qg5+ and mate.} (26. Qxc2 Qxd4+ 27. Rf2 Qxe5 $15) 26... Qxd4+ {[%emt 0:01:34]} 27. Kh1 {[%emt 0:00:05][%cal Ra2f7]} Rc6 {[%emt 0:00:46] [#]} 28. Re8 $3 {[%emt 0:01:31][%mdl 512]} Qg7 {[%emt 0:01:47]} (28... Qf6 29. Qg4+) 29. Qxf7+ {[%emt 0:00:41]} (29. Bxf7+ $142 Kh8 30. Rxf8+ (30. Qxd7 Rc8 $14) 30... Qxf8 31. Qe5+ (31. Qxd7 Rc8 $18) 31... Rf6 32. Qxf6+ (32. Rxf6 Kg7 33. Rf5+ Kh6 34. Rh5#) 32... Qg7 33. Qd8+ Qg8 34. Qxg8#) 29... Qxf7 {[%emt 0:00:30] White is clearly winning.} 30. Bxf7+ {[%emt 0:00:04]} Kg7 {[%emt 0:00:18]} 31. Rxf8 {[%emt 0:00:05]} Kxf8 {[%emt 0:01:27][%mdl 4096] Endgame. KRB-KRB} 32. Bd5+ {[%emt 0:00:04]} Ke7 {[%emt 0:00:08]} 33. Bxc6 {[%emt 0:00:06]} dxc6 {[%emt 0:00:02][%cal Bd7c6,Bc6c5][%mdl 32] KR-KB} 34. Rf4 {[%emt 0:02:10]} Bxd3 {[%emt 0:01:04]} 35. Rxa4 {[%emt 0:00:06]} Bg6 {[%emt 0:00:14]} 36. Kg1 {[%emt 0:01:04]} Kd6 {[%emt 0:00:14]} 37. Kf2 {[%emt 0:00:12]} Kd5 {[%emt 0:00:19]} 38. Ke3 {[%emt 0:00:16]} c5 {[%emt 0:00:17]} 39. g4 {[%emt 0:00:20] Weighted Error Value: White=0.30/Black=0.51.  Loses game:     	---       	Black=1      Mistake:       	White=2     	Black=2      Inaccurate:     	White=1     	Black=3      OK:         	White=7     	Black=5      Best:        	White=2     	---        Strong:       	White=1     	---} 1-0

[Event "26th Triest Festival 2024"]
[Site "Triest"]
[Date "2024.09.03"]
[Round "6.12"]
[White "Schlegel, Igor"]
[Black "Schnaider, Ilan"]
[Result "1-0"]
[Annotator "TA"]
[ECO "B87"]
[WhiteElo "2212"]
[BlackElo "2409"]
[PlyCount "55"]
[EventDate "2024.09.02"]
[EventType "swiss"]
[EventCountry "ITA"]
[SourceTitle "playchess.com"]
[Source "ChessBase"]
[SourceQuality "1"]
[TimeControl "5400+30"]

{[%evp 16,55,0,-2,20,14,27,56,44,32,75,58,93,36,44,39,73,60,73,72,83,65,106,0,114,116,139,140,137,146,290,318,303,304,521,254,601,594,571,576,29992,29993]} 1. e4 {[%emt 0:00:02]} c5 {[%emt 0:02:31]} 2. Nf3 {[%emt 0:00:05]} d6 {[%emt 0:00:03]} 3. d4 {[%emt 0:00:04]} cxd4 {[%emt 0:00:03]} 4. Nxd4 {[%emt 0:00:14]} Nf6 {[%emt 0:00:06]} 5. Nc3 {[%emt 0:00:02]} a6 {[%emt 0:00:03]} 6. Bc4 {[%emt 0:00:23]} e6 {[%emt 0:00:12]} 7. Be3 {[%emt 0:00:27]} b5 {[%emt 0:03:33]} 8. Bb3 {[%emt 0:00:26]} Be7 {[%emt 0:01:56]} 9. f3 {[%emt 0:00:21]} b4 {[%emt 0:07:39]} 10. Na4 {[%emt 0:02:19]} Bd7 {[%emt 0:01:00]} 11. Qd2 {[%emt 0:12:44]} O-O {[%emt 0:09:08] White is slightly better.} (11... Qa5 12. a3 $16) 12. Qxb4 {[%emt 0:07:32]} Nc6 $1 {[%emt 0:13:54]} 13. Qd2 {[%emt 0:04:31] White is more active.} Ne5 {[%emt 0:01:19] [#]} 14. O-O {[%emt 0:12:08]} (14. Nc3 $1 $16) 14... d5 $14 {[%emt 0:01:41]} 15. exd5 {[%emt 0:06:50]} Bxa4 {[%emt 0:05:59]} 16. Bxa4 {[%emt 0:00:39]} Nc4 {[%emt 0:03:28] [#]} 17. Qe2 {[%emt 0:10:16]} Nxe3 {[%emt 0:00:29]} 18. Nc6 {[%emt 0:00:33]} Qb6 {[%emt 0:01:59]} 19. Nxe7+ {[%emt 0:00:09]} Kh8 {[%emt 0:00:06]} 20. Qf2 {[%emt 0:00:19]} exd5 {[%emt 0:02:02]} 21. Rfe1 {[%emt 0:06:36][%cal Bf1e1,Be1e5,Be5h5][%mdl 32] Prevents d4} d4 {[%emt 0:00:21]} 22. c3 {[%emt 0:00:47][%cal Bc2c3,Bc3d4][%mdl 32] Prevents Qb4.} Nh5 {[%emt 0:18:48]} (22... Rad8 $16) 23. cxd4 $18 {[%emt 0:02:46]} Nc4 {[%emt 0:03:02]} 24. Rac1 {[%emt 0:07:31]} Nxb2 {[%emt 0:02:07]} (24... Nd6 25. d5 Qxf2+ 26. Kxf2 g6) 25. Rb1 {[%emt 0:02:16]} (25. Nd5 $142 Qb8 26. Rb1) 25... Qa5 {[%emt 0:01:54]} (25... Qb4 26. Re5 (26. Qxb2 Qxa4 27. d5 Nf6 $18) 26... Ra7) 26. Re5 {[%emt 0:01:37]} Qxa4 {[%emt 0:00:23]} 27. Rxh5 {[%emt 0:00:08]} ({Not} 27. Qxb2 Nf6 $16) ({Weaker is} 27. Rxb2 Rab8 $16) 27... g6 {[%emt 0:00:19] [#]} 28. Qh4 $1 {[%emt 0:00:33] Weighted Error Value: White=0.19 (very precise) /Black=0.91.  Mistake:       	White=2     	Black=3      Inaccurate:     	---       	Black=5      OK:         	White=10    	Black=7      Best:        	White=5     	---        Strong:       	---       	Black=1} 1-0